bitfinex/quotes_SOLUSD_20250321
["timestamp","ask_amount","ask_price","bid_price","bid_amount"]
[1742523911661,0.0001,128.44,128.43,63.82649652]
[1742523912639,0.063,128.46,128.45,40.28432314]
[1742523912640,0.0001,128.46,128.45,40.28432314]
[1742523912834,0.063,128.47,128.46,0.56864628]
[1742523912835,0.0001,128.47,128.46,0.56864628]
[1742523913136,0.0001,128.47,128.46,177.01411236]
[1742523913341,0.0001,128.47,128.46,175.45812224]
[1742523913553,0.0001,128.47,128.46,183.24262224]
[1742523914350,0.0001,128.47,128.46,495.24262224]
[1742523916359,0.063,128.52,128.49,20.0]
[1742523916559,0.063,128.52,128.5,6.82]
[1742523917363,0.063,128.52,128.5,20.46396542]
[1742523917940,0.063,128.52,128.5,6.82]
[1742523919468,0.063,128.52,128.5,318.82]
[1742523919768,0.063,128.52,128.5,332.46396542]
[1742523919943,0.063,128.52,128.5,20.46396542]
[1742523920443,0.063,128.52,128.47,20.0]
[1742523920640,13.70696542,128.52,128.48,20.46396542]
[1742523920848,13.70696542,128.52,128.48,6.82]
[1742523921462,13.70696542,128.52,128.48,13.64396542]
[1742523922262,7.7814,128.51,128.48,13.64396542]
[1742523925673,21.48806542,128.52,128.48,13.64396542]
[1742523926982,0.063,128.52,128.48,13.64396542]
[1742523927688,0.063,128.52,128.48,21.42716542]
[1742523927974,0.063,128.52,128.5,13.64396542]
[1742523928161,0.063,128.52,128.51,13.64396542]
[1742523928762,0.063,128.52,128.51,20.44396542]
[1742523929285,0.063,128.52,128.51,28.22536542]
[1742523930285,0.063,128.52,128.51,48.22536542]
[1742523930576,0.063,128.52,128.51,360.22536542]
[1742523932683,0.063,128.52,128.51,360.50968856]
[1742523934064,0.063,128.52,128.51,441.70968856]
[1742523934978,0.063,128.52,128.51,441.9940117]
[1742523935184,0.063,128.52,128.51,460.64366056]
[1742523935356,0.0001,128.52,128.51,515.21952224]
[1742523935918,0.0001,128.52,128.51,460.64366056]
[1742523936060,0.0001,128.52,128.51,441.9940117]
[1742523946686,0.0001,128.52,128.51,460.64366056]
[1742523947390,0.0001,128.52,128.51,148.64366056]
[1742523950371,0.0001,128.52,128.51,460.64366056]
[1742523956698,0.0001,128.52,128.51,441.9940117]
[1742523959375,0.063,128.53,128.52,13.64396542]
[1742523959580,0.063,128.53,128.52,94.84396542]
[1742523960498,0.063,128.53,128.52,102.62476542]
[1742523965505,0.063,128.53,128.52,414.62476542]
[1742523966013,0.0001,128.53,128.52,415.1934117]
[1742523966176,0.0001,128.53,128.52,488.41892224]
[1742523969183,0.0001,128.53,128.52,176.44892224]
[1742523970495,0.0001,128.53,128.52,178.01612224]
[1742523971305,0.063,128.55,128.54,20.42648471]
[1742523971516,0.0001,128.55,128.54,54.27511823]
[1742523972190,0.0001,128.55,128.54,366.27511823]
[1742523972384,0.0001,128.55,128.54,364.72009899]
[1742523973612,0.0001,128.55,128.54,372.49969899]
[1742523974102,0.0001,128.55,128.54,376.42359]
[1742523975011,0.0001,128.55,128.54,383.14359]
[1742523975212,0.0001,128.55,128.54,464.34359]
[1742523976010,0.0001,128.55,128.54,464.48575157]
[1742523979712,0.0001,128.57,128.56,20.42648471]
[1742523979917,0.0001,128.57,128.56,116.96732167]
[1742523980300,0.0001,128.57,128.56,124.74572167]
[1742523980702,0.0001,128.57,128.56,131.59475854]
[1742523981220,0.0001,128.57,128.56,125.24572167]
[1742523982093,0.0001,128.57,128.56,124.74572167]
[1742523982918,0.0001,128.57,128.56,436.74572167]
[1742523983116,0.0001,128.57,128.56,435.1910117]
[1742523985523,0.0001,128.57,128.56,435.6910117]
[1742523985701,0.0001,128.57,128.56,435.1910117]
[1742523986822,0.0001,128.57,128.56,435.6910117]
[1742523987015,0.0001,128.57,128.56,490.26687338]
[1742523987716,0.063,128.59,128.58,58.933972]
[1742523987920,0.0001,128.59,128.58,135.40832688]
[1742523990099,0.0001,128.59,128.58,143.18552688]
[1742523991723,0.0001,128.6,128.59,0.28432314]
[1742523991914,7.6317,128.65,128.63,20.0]
[1742523992102,7.6317,128.65,128.64,6.7]
[1742523994808,7.6317,128.65,128.64,318.7]
[1742523996109,7.6317,128.65,128.64,326.4736]
[1742523996799,7.6317,128.65,128.64,14.4736]
[1742523998722,7.6317,128.65,128.64,6.7]
[1742524009239,7.6317,128.65,128.63,20.0]
[1742524009419,7.6317,128.65,128.63,26.68]
[1742524009618,0.063,128.65,128.63,34.4539]
[1742524016041,0.063,128.65,128.64,0.28432314]
[1742524016245,0.063,128.65,128.64,95.12828856]
[1742524017842,0.063,128.65,128.64,102.90188856]
[1742524019943,0.063,128.65,128.64,89.25792314]
[1742524020440,0.063,128.65,128.64,81.48432314]
[1742524020835,0.063,128.65,128.64,81.2]
[1742524021049,13.70696542,128.65,128.64,81.2]
[1742524022253,13.70696542,128.65,128.63,26.66]
[1742524022435,0.063,128.65,128.63,26.66]
[1742524022835,13.70696542,128.65,128.63,26.66]
[1742524023446,13.64396542,128.64,128.61,81.2]
[1742524023744,13.64396542,128.63,128.61,81.2]
[1742524024547,21.41836542,128.63,128.61,81.2]
[1742524027944,21.41836542,128.63,128.6,26.69]
[1742524028758,0.063,128.65,128.62,33.64396542]
[1742524029134,0.063,128.65,128.63,13.92828856]
[1742524029335,0.063,128.65,128.64,40.58828856]
[1742524030261,0.063,128.65,128.64,48.21972699]
[1742524030643,0.063,128.65,128.64,34.57576157]
[1742524031453,0.063,128.65,128.64,48.21972699]
[1742524031950,0.063,128.65,128.64,441.8462117]
[1742524053680,0.063,128.65,128.64,420.14432314]
[1742524053851,0.063,128.65,128.64,107.86]
[1742524054057,13.70696542,128.65,128.64,81.2]
[1742524054572,13.70696542,128.65,128.63,6.72]
[1742524054792,13.64396542,128.64,128.63,6.72]
[1742524055084,13.64396542,128.64,128.61,93.4159164]
[1742524055399,13.64396542,128.63,128.61,93.4159164]
[1742524056065,13.64396542,128.64,128.61,93.4159164]
[1742524056266,13.64396542,128.63,128.61,81.2]
[1742524057475,13.64396542,128.64,128.61,88.9752]
[1742524060190,13.64396542,128.64,128.6,346.5258]
[1742524061185,21.41756542,128.64,128.6,346.5258]
[1742524061479,13.64396542,128.64,128.6,346.5258]
[1742524061888,13.64396542,128.62,128.6,338.75]
[1742524062088,13.64396542,128.63,128.6,338.75]
[1742524062386,13.64396542,128.63,128.6,26.75]
[1742524062769,13.64396542,128.62,128.6,26.75]
[1742524063503,13.64396542,128.61,128.6,6.75]
[1742524065098,13.64396542,128.61,128.6,0.03]
[1742524069984,21.41936542,128.61,128.6,0.03]
[1742524070501,40.06901428,128.61,128.6,0.03]
[1742524072197,13.64396542,128.61,128.6,0.03]
[1742524073903,13.64396542,128.62,128.6,0.03]
[1742524074198,0.063,128.65,128.6,0.03]
[1742524074373,13.64396542,128.64,128.6,0.03]
[1742524074803,13.64396542,128.64,128.6,6.71]
[1742524074990,0.063,128.62,128.6,6.71]
[1742524075404,0.063,128.62,128.6,20.35396542]
[1742524075989,0.063,128.62,128.61,7.7754]
[1742524077277,0.063,128.62,128.61,319.7754]
[1742524080385,0.063,128.62,128.61,7.7754]
[1742524082197,0.063,128.62,128.61,27.7754]
[1742524083398,0.063,128.62,128.61,339.7754]
[1742524084493,0.063,128.62,128.61,27.7754]
[1742524087506,0.063,128.62,128.61,339.7754]
[1742524089698,0.063,128.62,128.61,27.7754]
[1742524094288,0.063,128.62,128.61,122.90368856]
[1742524095790,0.063,128.62,128.61,108.9754]
[1742524097400,0.063,128.62,128.61,434.61936542]
[1742524097716,0.063,128.62,128.61,434.90368856]
[1742524098090,0.063,128.62,128.61,435.1880117]
[1742524098912,0.063,128.62,128.61,421.25972314]
[1742524099410,0.063,128.62,128.61,420.9754]
[1742524099608,0.063,128.62,128.61,108.9754]
[1742524100208,0.063,128.62,128.61,115.6154]
[1742524101919,0.063,128.62,128.61,95.6154]
[1742524102523,0.063,128.62,128.61,407.6154]
[1742524103621,0.063,128.62,128.61,81.2]
[1742524104422,0.063,128.62,128.6,14.4459]
[1742524106630,0.063,128.62,128.6,326.4459]
[1742524109719,0.063,128.62,128.6,7.8059]
[1742524109928,0.063,128.62,128.6,14.4459]
[1742524112822,0.063,128.62,128.6,7.8059]
[1742524113011,13.64396542,128.61,128.6,0.03]
[1742524116222,13.70696542,128.62,128.6,0.03]
[1742524118235,0.063,128.62,128.6,0.03]
[1742524121339,0.063,128.62,128.6,319.806]
[1742524121636,0.063,128.62,128.6,7.806]
[1742524122536,0.063,128.62,128.6,0.03]
[1742524124130,13.64396542,128.61,128.6,0.03]
[1742524131824,32.29361428,128.61,128.6,0.03]
[1742524140993,40.06901428,128.61,128.6,0.03]
[1742524143761,32.29361428,128.61,128.6,0.03]
[1742524144072,0.063,128.62,128.6,325.67396542]
[1742524144259,0.063,128.62,128.61,13.64396542]
[1742524145581,0.063,128.62,128.61,21.41936542]
[1742524149282,0.063,128.62,128.61,41.41936542]
[1742524149577,0.063,128.65,128.63,20.0]
[1742524149781,0.063,128.65,128.64,6.62]
[1742524150168,0.063,128.65,128.64,332.26396542]
[1742524150385,0.0001,128.65,128.64,332.54828856]
[1742524150688,0.063,128.66,128.65,20.0629]
[1742524150983,0.063,128.66,128.65,33.70686542]
[1742524151571,0.063,128.66,128.65,41.47986542]
[1742524152073,0.063,128.66,128.65,41.76418856]
[1742524152279,0.063,128.66,128.65,122.96418856]
[1742524156267,0.063,128.66,128.65,434.96418856]
[1742524160366,0.063,128.66,128.65,122.96418856]
[1742524160566,0.063,128.66,128.65,101.2629]
[1742524162284,0.063,128.66,128.65,109.0359]
[1742524162476,0.063,128.66,128.65,123.2485117]
[1742524163284,0.063,128.66,128.65,435.2485117]
[1742524167188,0.063,128.68,128.67,53.92828856]
[1742524167384,0.063,128.68,128.67,135.12828856]
[1742524169302,0.063,128.68,128.67,142.90008856]
[1742524170499,0.063,128.68,128.67,454.90008856]
[1742524170669,0.063,128.68,128.67,455.1844117]
[1742524170866,0.063,128.69,128.68,13.92828856]
[1742524171070,0.063,128.69,128.68,20.52828856]
[1742524171294,0.063,128.69,128.68,28.29948856]
[1742524171672,0.063,128.69,128.68,109.49948856]
[1742524174292,0.063,128.69,128.68,95.5712]
[1742524174876,0.063,128.69,128.67,6.6]
[1742524175077,0.063,128.69,128.66,81.48432314]
[1742524175078,13.70696542,128.69,128.66,88.9721]
[1742524175282,13.70696542,128.69,128.67,6.6]
[1742524175497,0.063,128.69,128.67,6.6]
[1742524177895,0.063,128.69,128.67,14.3716]
[1742524183894,0.063,128.69,128.67,6.6]
[1742524185996,0.063,128.69,128.67,14.3717]
[1742524186603,0.063,128.69,128.67,6.6]
[1742524186981,13.70696542,128.69,128.66,0.063]
[1742524187183,13.64396542,128.68,128.66,0.063]
[1742524188003,13.64396542,128.67,128.66,0.063]
[1742524188297,32.29361428,128.67,128.66,0.063]
[1742524189083,40.06541428,128.67,128.66,0.063]
[1742524189277,38.30761428,128.67,128.66,0.063]
[1742524192214,30.53581428,128.67,128.66,0.063]
[1742524192805,38.30761428,128.67,128.66,0.063]
[1742524199101,30.53581428,128.67,128.66,0.063]
[1742524200891,13.67396542,128.68,128.66,0.063]
[1742524201293,0.03,128.68,128.66,0.063]
[1742524203113,0.03,128.68,128.66,13.70696542]
[1742524203414,0.03,128.68,128.66,15.34796542]
[1742524204007,0.03,128.68,128.66,327.34796542]
[1742524204698,0.03,128.68,128.66,313.704]
[1742524205216,0.03,128.68,128.67,7.7718]
[1742524210621,0.03,128.68,128.67,41.41576542]
[1742524211212,0.03,128.68,128.67,339.7718]
[1742524212421,0.03,128.68,128.67,353.41576542]
[1742524213319,0.03,128.68,128.67,27.7718]
[1742524213696,0.03,128.68,128.67,7.7718]
[1742524213902,0.03,128.68,128.66,89.0351]
[1742524216419,13.64396542,128.67,128.66,81.263]
[1742524218712,13.64396542,128.67,128.66,0.063]
[1742524223123,12.64396542,128.67,128.66,0.063]
[1742524226412,32.32361428,128.68,128.66,0.063]
[1742524234721,32.29361428,128.67,128.66,0.063]
[1742524236638,40.06541428,128.67,128.66,0.063]
[1742524243016,46.36511428,128.67,128.66,0.063]
[1742524243734,46.93376056,128.67,128.66,0.063]
[1742524244119,20.0,128.63,128.6,0.03]
[1742524244432,13.64396542,128.61,128.6,0.03]
[1742524245520,32.29361428,128.61,128.6,0.03]
[1742524262056,40.06901428,128.61,128.6,0.03]
[1742524263041,32.29361428,128.61,128.6,0.03]
[1742524263240,13.64396542,128.62,128.6,0.03]
[1742524263562,18.64964886,128.63,128.6,0.03]
[1742524263857,18.64964886,128.63,128.6,6.65]
[1742524264843,18.64964886,128.63,128.61,7.7754]
[1742524268753,18.64964886,128.63,128.6,326.4257]
[1742524269771,18.64964886,128.63,128.6,14.4257]
[1742524270070,32.29361428,128.63,128.6,14.4257]
[1742524270454,30.35005524,128.63,128.6,14.4257]
[1742524272650,30.35005524,128.63,128.6,326.4257]
[1742524275859,30.35005524,128.63,128.6,14.4257]
[1742524276059,13.64396542,128.61,128.6,0.03]
[1742524279560,40.06901428,128.61,128.6,0.03]
[1742524280266,32.29361428,128.61,128.6,0.03]
[1742524289671,40.06901428,128.61,128.6,0.03]
[1742524290381,32.29361428,128.61,128.6,0.03]
[1742524293080,18.64964886,128.62,128.6,0.03]
[1742524295384,32.29361428,128.62,128.6,0.03]
[1742524303803,13.64396542,128.61,128.6,0.03]
[1742524303983,32.29361428,128.61,128.6,0.03]
[1742524305606,40.06901428,128.61,128.6,0.03]
[1742524306893,32.29361428,128.61,128.6,0.03]
[1742524311011,40.06901428,128.61,128.6,0.03]
[1742524324857,18.933972,128.6,128.54,0.063]
[1742524325049,13.64396542,128.55,128.54,0.063]
[1742524325426,13.64396542,128.56,128.54,0.063]
[1742524332269,32.29361428,128.55,128.54,0.063]
[1742524334372,18.64964886,128.55,128.54,0.063]
[1742524336663,32.29361428,128.55,128.54,0.063]
[1742524337565,40.07261428,128.55,128.54,0.063]
[1742524339282,40.64126056,128.55,128.54,0.063]
[1742524344906,0.56864628,128.53,128.52,0.03]
[1742524345121,32.86226056,128.53,128.47,1.6208]
[1742524345406,32.86226056,128.53,128.47,9.4046]
[1742524345407,13.64396542,128.49,128.47,9.4046]
[1742524350305,13.64396542,128.49,128.47,1.6208]
[1742524350801,13.64396542,128.48,128.47,1.6208]
[1742524351409,13.64396542,128.48,128.47,0.03]
[1742524353728,32.29361428,128.48,128.47,0.03]
[1742524354425,40.07691428,128.48,128.47,0.03]
[1742524357523,32.29361428,128.48,128.47,0.03]
[1742524358205,40.07691428,128.48,128.47,0.03]
[1742524361127,32.29361428,128.48,128.47,0.03]
[1742524384452,40.07691428,128.48,128.47,0.03]
[1742524384752,32.29361428,128.48,128.47,0.03]
[1742524390650,18.64964886,128.48,128.47,0.03]
[1742524390862,32.29361428,128.48,128.47,0.03]
[1742524395959,13.64396542,128.5,128.47,0.03]
[1742524396162,0.063,128.52,128.47,13.67396542]
[1742524396343,18.71264886,128.52,128.47,13.67396542]
[1742524397139,18.71264886,128.52,128.48,13.64396542]
[1742524397353,18.71264886,128.52,128.49,15.27836542]
[1742524397354,0.063,128.52,128.49,15.27836542]
[1742524397559,0.063,128.52,128.49,21.89836542]
[1742524398161,0.063,128.52,128.5,7.7821]
[1742524401066,0.063,128.52,128.5,21.42606542]
[1742524402945,0.063,128.52,128.5,7.7821]
[1742524413162,0.063,128.52,128.51,13.64396542]
[1742524413770,0.063,128.52,128.51,21.42536542]
[1742524416376,0.063,128.52,128.51,333.42536542]
[1742524419379,0.063,128.52,128.51,21.42536542]
[1742524427178,0.063,128.52,128.51,21.9940117]
[1742524429967,0.063,128.52,128.51,103.1940117]
[1742524430291,0.063,128.52,128.51,415.1940117]
[1742524440790,0.063,128.52,128.51,414.90968856]
[1742524440973,0.063,128.52,128.51,415.1940117]
[1742524442380,0.063,128.52,128.51,81.2]
[1742524442587,0.063,128.52,128.51,87.8]
[1742524442990,0.063,128.52,128.51,95.5814]
[1742524446394,0.063,128.52,128.51,129.22536542]
[1742524446601,13.64396542,128.59,128.54,20.0]
[1742524446902,13.64396542,128.59,128.55,6.6]
[1742524447194,19.72736542,128.6,128.55,20.24396542]
[1742524447378,18.64964886,128.59,128.55,20.24396542]
[1742524447695,18.64964886,128.59,128.55,28.02236542]
[1742524447900,32.29361428,128.59,128.55,14.3784]
[1742524450975,18.64964886,128.59,128.55,28.02236542]
[1742524452906,32.29361428,128.59,128.55,14.3784]
[1742524456089,13.64396542,128.59,128.55,14.3784]
[1742524460211,13.70696542,128.6,128.56,20.0]
[1742524460508,0.063,128.6,128.56,33.64396542]
[1742524461345,18.71264886,128.6,128.56,13.64396542]
[1742524461607,13.64396542,128.57,128.55,6.6]
[1742524464391,18.64964886,128.55,128.52,6.63]
[1742524464596,13.64396542,128.54,128.52,6.63]
[1742524466109,13.64396542,128.54,128.52,14.4107]
[1742524466616,13.64396542,128.55,128.52,14.4107]
[1742524467909,13.64396542,128.55,128.52,7.8107]
[1742524468104,13.64396542,128.55,128.52,14.4107]
[1742524468700,13.64396542,128.57,128.52,48.05466542]
[1742524468902,13.64396542,128.57,128.52,67.50686542]
[1742524470317,32.29361428,128.58,128.53,13.64396542]
[1742524470524,18.64964886,128.58,128.54,13.64396542]
[1742524471033,13.64396542,128.59,128.54,33.64396542]
[1742524471818,13.64396542,128.59,128.55,7.779]
[1742524472009,13.64396542,128.59,128.56,6.6]
[1742524474328,13.64396542,128.59,128.56,14.3782]
[1742524476020,13.70696542,128.59,128.56,6.6]
[1742524477531,21.48356542,128.59,128.56,6.6]
[1742524477724,32.29361428,128.58,128.56,6.6]
[1742524478931,40.07091428,128.58,128.56,6.6]
[1742524480528,32.29361428,128.58,128.56,6.6]
[1742524480733,32.29361428,128.58,128.54,14.3795]
[1742524482135,18.64964886,128.58,128.54,28.02346542]
[1742524486946,18.64964886,128.58,128.54,340.02346542]
[1742524487320,18.64964886,128.58,128.54,28.02346542]
[1742524489820,32.29361428,128.58,128.54,14.3795]
[1742524490336,40.07081428,128.58,128.54,14.3795]
[1742524490946,13.64396542,128.56,128.53,88.98]
[1742524491124,13.64396542,128.56,128.54,6.6]
[1742524492533,13.64396542,128.57,128.54,6.6]
[1742524493121,18.64964886,128.56,128.54,6.6]
[1742524493321,32.29361428,128.56,128.54,6.6]
[1742524495745,18.64964886,128.56,128.54,14.3794]
[1742524496127,18.64964886,128.57,128.54,14.3794]
[1742524496526,18.64964886,128.58,128.55,13.64396542]
[1742524497850,18.64964886,128.58,128.56,7.7784]
[1742524498243,18.64964886,128.58,128.55,7.7787]
[1742524498644,32.29361428,128.58,128.54,14.3794]
[1742524499429,40.07091428,128.58,128.54,14.3794]
[1742524499849,13.64396542,128.57,128.54,14.3794]
[1742524500647,13.64396542,128.57,128.54,6.6]
[1742524500835,13.64396542,128.56,128.54,6.6]
[1742524501431,13.64396542,128.57,128.54,6.6]
[1742524502053,18.64964886,128.56,128.54,6.6]
[1742524502427,13.64396542,128.57,128.54,6.6]
[1742524502632,18.64964886,128.56,128.54,14.3796]
[1742524504761,18.64964886,128.56,128.54,6.6]
[1742524505261,18.64964886,128.56,128.53,7.7799]
[1742524505463,18.64964886,128.56,128.53,14.3799]
[1742524508767,18.64964886,128.56,128.53,6.6]
[1742524509260,18.64964886,128.56,128.53,14.3802]
[1742524509969,13.64396542,128.57,128.53,14.3802]
[1742524510563,18.64964886,128.56,128.53,326.3802]
[1742524510868,18.64964886,128.56,128.54,1.94446604]
[1742524511369,18.64964886,128.56,128.54,9.72406604]
[1742524512871,0.063,128.57,128.54,1.94446604]
[1742524513053,0.063,128.57,128.54,23.36793146]
[1742524513855,0.063,128.57,128.56,13.64396542]
[1742524515070,0.063,128.57,128.56,33.64396542]
[1742524515774,0.063,128.57,128.56,41.42236542]
[1742524516661,0.063,128.59,128.57,1.88146604]
[1742524516861,0.063,128.59,128.58,6.6]
[1742524519354,0.063,128.59,128.58,14.3772]
[1742524521959,0.063,128.59,128.58,6.6]
[1742524522765,0.063,128.59,128.58,14.3772]
[1742524537690,0.063,128.59,128.58,50.1436117]
[1742524537897,0.063,128.6,128.59,0.56864628]
[1742524538074,0.063,128.6,128.59,103.1892117]
[1742524539481,0.0001,128.6,128.59,103.1892117]
[1742524540595,0.0001,128.6,128.59,415.1892117]
[1742524546300,0.03,128.63,128.62,20.0]
[1742524546475,0.03,128.63,128.62,40.24396542]
[1742524548794,0.03,128.63,128.62,48.01876542]
[1742524549396,0.03,128.63,128.62,360.01876542]
[1742524550008,0.03,128.63,128.62,360.5874117]
[1742524550178,0.03,128.63,128.62,129.7874117]
[1742524551980,0.03,128.63,128.62,129.21876542]
[1742524553193,0.03,128.63,128.62,441.21876542]
[1742524554411,0.03,128.63,128.62,427.5748]
[1742524556710,0.03,128.63,128.62,115.5748]
[1742524557719,0.03,128.63,128.62,129.21876542]
[1742524559915,0.03,128.63,128.62,441.21876542]
[1742524561408,0.03,128.63,128.62,441.7874117]
[1742524561992,0.03,128.63,128.62,441.50308856]
[1742524562212,0.03,128.63,128.62,441.7874117]
[1742524576918,0.03,128.63,128.62,427.5748]
[1742524578727,0.03,128.63,128.62,420.9748]
[1742524578910,0.03,128.63,128.62,427.5748]
[1742524579533,0.03,128.63,128.62,318.6]
[1742524579910,0.03,128.63,128.62,326.3748]
[1742524582435,0.03,128.63,128.62,14.3748]
[1742524584134,0.03,128.63,128.62,28.01876542]
[1742524585433,0.03,128.63,128.62,340.01876542]
[1742524588828,0.03,128.63,128.62,326.3748]
[1742524595341,0.03,128.63,128.62,340.01876542]
[1742524597342,0.03,128.63,128.62,28.01876542]
[1742524600363,0.03,128.63,128.62,326.3748]
[1742524601026,0.03,128.63,128.62,340.01876542]
[1742524603046,0.03,128.63,128.62,326.3748]
[1742524606064,0.0001,128.63,128.62,28.5874117]
[1742524606772,0.0001,128.63,128.62,30.1379117]
[1742524607870,0.0001,128.63,128.62,136.62056056]
[1742524608465,0.0001,128.63,128.62,138.17462973]
[1742524608972,0.0001,128.63,128.62,141.97884922]
[1742524609175,0.0001,128.63,128.62,453.97884922]
[1742524609367,0.0001,128.63,128.62,452.42478005]
[1742524609751,0.0001,128.63,128.62,464.56550221]
[1742524611260,0.0001,128.63,128.62,457.81727624]
[1742524611465,0.03,128.65,128.64,40.0]
[1742524611672,0.03,128.65,128.64,53.64396542]
[1742524612075,0.03,128.65,128.64,61.41756542]
[1742524614572,0.03,128.65,128.64,454.61756542]
[1742524615489,0.03,128.68,128.67,20.0]
[1742524615801,0.03,128.68,128.67,40.8126117]
[1742524616367,0.03,128.68,128.67,40.24396542]
[1742524616567,0.03,128.68,128.67,6.6]
[1742524618589,0.03,128.68,128.67,318.6]
[1742524620467,0.03,128.68,128.67,6.6]
[1742524621076,13.67396542,128.68,128.67,6.6]
[1742524621367,19.78026542,128.68,128.64,115.5733]
[1742524621568,19.78026542,128.68,128.64,34.3733]
[1742524623390,19.78026542,128.68,128.65,312.0]
[1742524624185,19.78026542,128.68,128.65,319.7728]
[1742524624390,0.03,128.68,128.65,319.7728]
[1742524625495,0.03,128.68,128.65,333.41676542]
[1742524625676,0.03,128.68,128.65,21.41676542]
[1742524626894,0.03,128.68,128.65,7.7728]
[1742524627194,13.67396542,128.68,128.65,7.7728]
[1742524627694,0.03,128.68,128.65,7.7728]
[1742524628592,0.03,128.68,128.65,319.7728]
[1742524630695,23.00216542,128.69,128.65,319.7728]
[1742524630883,15.23156542,128.69,128.65,319.7728]
[1742524631890,0.03,128.68,128.65,319.7728]
[1742524642915,0.03,128.68,128.65,7.7728]
[1742524645916,0.03,128.68,128.67,312.0]
[1742524647405,0.03,128.68,128.67,41.41576542]
[1742524647712,0.03,128.68,128.67,41.9844117]
[1742524649590,0.063,128.69,128.68,0.56864628]
[1742524649811,0.063,128.69,128.68,20.8126117]
[1742524650389,0.063,128.69,128.68,332.8126117]
[1742524652607,0.063,128.69,128.68,340.5838117]
[1742524655113,0.063,128.69,128.68,421.7838117]
[1742524656089,0.063,128.69,128.68,421.8468117]
[1742524656395,0.063,128.7,128.69,20.0]
[1742524656596,0.063,128.7,128.69,40.22396542]
[1742524657519,0.063,128.7,128.69,47.99456542]
[1742524659915,0.063,128.7,128.69,359.99456542]
[1742524661498,0.063,128.7,128.69,441.19456542]
[1742524674527,0.063,128.71,128.69,441.7632117]
[1742524674707,0.063,128.71,128.7,15.19719126]
[1742524675729,0.063,128.71,128.7,22.96719126]
[1742524676025,0.063,128.71,128.7,21.41396542]
[1742524677733,0.063,128.71,128.7,333.41396542]
[1742524679217,0.063,128.71,128.7,414.61396542]
[1742524679637,0.063,128.71,128.7,414.89828856]
[1742524681943,0.063,128.71,128.7,102.89828856]
[1742524682719,0.063,128.72,128.71,20.28432314]
[1742524682932,0.063,128.72,128.71,33.92828856]
[1742524684947,0.063,128.72,128.71,434.89768856]
[1742524690748,0.063,128.72,128.71,421.25372314]
[1742524690928,0.063,128.72,128.71,434.89768856]
[1742524694148,0.063,128.72,128.71,441.47768856]
[1742524703040,0.063,128.72,128.71,427.5494]
[1742524703752,0.063,128.72,128.71,427.6124]
[1742524705576,0.063,128.72,128.71,441.54068856]
[1742524705778,0.063,128.72,128.71,441.8250117]
[1742524718984,0.063,128.72,128.71,427.89672314]
[1742524721980,0.063,128.72,128.71,115.89672314]
[1742524722491,0.063,128.72,128.71,115.6124]
[1742524723899,0.063,128.72,128.71,109.0324]
[1742524724113,0.063,128.72,128.71,115.6124]
[1742524724999,0.063,128.72,128.71,427.6124]
[1742524725867,0.063,128.72,128.71,413.263]
[1742524726097,13.70696542,128.72,128.71,0.063]
[1742524728294,21.47576542,128.72,128.71,0.063]
[1742524729677,13.70696542,128.72,128.71,0.063]
[1742524731102,21.47576542,128.72,128.71,0.063]
[1742524733082,40.12541428,128.72,128.71,0.063]
[1742524733398,94.9855991,128.72,128.71,0.063]
[1742524733897,40.40973742,128.72,128.71,0.063]